Cogmind - Beta 14 @@@ ROGUE MODE // 2025.03.17 @ 10:33:46 Player: Attma Result: Destroyed by as-47464 with Assembled Rifle Performance ------------- Evolutions (0) 0 Regions Visited (2) 400 Robots Destroyed (32) 160 Value Destroyed (508) 508 Prototype IDs (3) 60 Alien Tech Used (0) 0 Bonus (0) 0 TOTAL SCORE: 1128 Bonus ------- None Cogmind --------- Core Integrity 0/250 Matter 171/300 Energy 100/100 System Corruption 0% Temperature Cool (0) Movement Core (400) Ox7 Location -10/Mines Parts ------- > --- POWER (1) -------- (None) > --- PROPULSION (2) --- (None) > --- UTILITY (2) ------ Large Storage Unit > --- WEAPON (2) ------- Light Cannon > --- INVENTORY (15) --- Light Ion Engine Small Storage Unit Medium Storage Unit Weight Redist. System Sensor Array Seismic Detector Power Shielding Light Assault Rifle Light Assault Rifle Light Assault Rifle Light Cannon Mining Laser Peak State ------------ > --- POWER ------------ Ion Engine > --- PROPULSION ------- Light Treads Light Treads > --- UTILITY ---------- Medium Storage Unit Seismic Detector > --- WEAPON ----------- Light Assault Rifle Light Assault Rifle > --- INVENTORY -------- Light Ion Engine Small Storage Unit Weight Redist. System Seismic Detector Power Shielding Light Cannon Light Cannon Grenade Launcher Mining Laser [Rating: 8] Favorites ----------- Power Ion Engine Engine Ion Engine Propulsion Light Treads Treads Light Treads Utility Seismic Detector Device Seismic Detector Storage Large Storage Unit Protection Power Shielding Weapon Light Assault Rifle Ballistic Gun Light Assault Rifle Ballistic Cannon Light Cannon Launcher Grenade Launcher Special Weapon Mining Laser Build | -11 -10 -10 ------- Run | Yrd Mat Min Slots Evolved . | . . . Power . | . . . Propulsion . | . . . Utility . | . . . Weapon . | . . . Parts Attached 30 | 4 18 8 Power 2 | . 2 . Engine 2 | . 2 . Core . | . . . Reactor . | . . . Propulsion 6 | 1 5 . Treads 6 | 1 5 . Leg . | . . . Wheel . | . . . Hover . | . . . Flight . | . . . Utility 8 | 1 7 . Device 4 | 1 3 . Storage 3 | . 3 . Processor . | . . . Hackware . | . . . Protection 1 | . 1 . Artifact . | . . . Weapon 14 | 2 4 8 Energy Gun . | . . . Energy Cannon . | . . . Ballistic Gun 8 | 2 2 4 Ballistic Cannon 2 | . 1 1 Launcher 3 | . . 3 Special Weapon 1 | . 1 . Impact Weapon . | . . . Slashing Weapon . | . . . Piercing Weapon . | . . . Special Melee Weapon . | . . . Unidentified Prototypes . | . . . Parts Lost 12 | . 4 8 Power 2 | . 1 1 Propulsion 3 | . 1 2 Utility 2 | . 1 1 Weapon 5 | . 1 4 Highest Loss Streak 8 | . 1 8 To Critical Strikes . | . . . Average Slot Usage (%) 97 | . 97 98 Engine 13 | . 13 14 Treads 27 | . 27 26 Device 10 | . 10 14 Storage 13 | . 13 14 Protection 2 | . 2 . Ballistic Gun 24 | . 24 21 Ballistic Cannon 3 | . 3 3 Peak Build Rating 8 | 4 8 8 Average Rating 6 | 2 7 7 On Entrance 4 | . 4 8 Naked Turns . | . . . Heaviest Build 32 | 4 30 32 Greatest Support 40 | 20 40 40 Greatest Overweight (x) 5 | . 5 . Average Overweight (x) . | . . . Largest Inventory Capacity 15 | 5 15 15 Average Capacity 10 | 5 11 15 Most Carried 15 | 5 15 15 Average Carried 8 | 3 8 14 Final Capacity 15 | 5 15 15 Final Carried 15 | 5 15 12 Class Distribution -------------------- 96% | Mutant 3% | Scavenger-Mutant Dominant Class ---------------- Mutant | -10/Materials Scavenger-Mutant | -10/Mines Resources | -11 -10 -10 ----------- Run | Yrd Mat Min Matter Collected 777 | 332 436 9 Remotely . | . . . Salvage Created 1061 | 178 839 44 Parts 57 | 11 44 2 Haulers Intercepted 2 | . 2 . Recyclers Shooed 3 | . 3 . Parts Field Recycled . | . . . Retrieved Matter . | . . . Parts Self-Destructed . | . . . Prevented . | . . . Kills | -11 -10 -10 ------- Run | Yrd Mat Min Combat Hostiles Destroyed 24 | . 16 8 Guns 17 | . 16 1 Cannons 1 | . . 1 AOE 6 | . . 6 Classes Destroyed 8 | 3 4 1 Worker 3 | 2 1 . Tunneler 4 | 4 . . Hauler 2 | . 2 . Recycler 4 | 1 3 . Watcher 1 | . 1 . Swarmer 8 | . 6 2 Grunt 10 | . 10 . Assembled 6 | . . 6 Best Kill Streak 6 | 3 5 6 Combat Bots Only 6 | . 3 6 Max Kills in Single Turn 5 | 1 1 5 Gunslinging . | . . . Exploded 5 | . . 5 Melee . | . . . Uniques/NPCs Destroyed . | . . . Combat | -11 -10 -10 -------- Run | Yrd Mat Min Hostile Shots Fired 154 | . 83 71 Missed 34 | . 16 18 Damage Taken 1531 | . 753 778 Core 257 | . 127 130 Absorbed by Shields . | . . . Redirected to Shielding 3 | . 3 . Regen/Repaired (Parts) 81 | . 81 . Core Remaining (%) 100 | 100 . . Volleys Fired 129 | 25 92 12 Largest 2 | 2 2 2 Hottest 100 | 40 100 65 Shots Fired 249 | 49 180 20 Gun 233 | 49 172 12 Cannon 9 | . 5 4 Launcher 4 | . . 4 Special 3 | . 3 . Kinetic 242 | 49 177 16 Thermal 3 | . 3 . Explosive 4 | . . 4 Electromagnetic . | . . . Robot Hit Streak 11 | 4 11 4 Robot Miss Streak 4 | 4 3 3 Penetration Max . | . . . Secondary Targets 1 | . 1 . Max Gunslinging Chain 1 | . 1 . Shots Hit Robots 161 | 28 122 11 Core Hits 80 | 12 46 22 Critical Kills 1 | 1 . . Critical Parts Destroyed 3 | . 3 . Critical Strikes 4 | 1 3 . Destroy 4 | 1 3 . Melee Attacks . | . . . Impact . | . . . Slashing . | . . . Piercing . | . . . Sneak Attacks . | . . . Combat Hostiles . | . . . Follow-up Attacks . | . . . Damage Inflicted 2136 | 267 1110 759 Guns 1399 | 267 1055 77 Cannons 128 | . 53 75 Explosions 607 | . . 607 Melee . | . . . Ramming 2 | . 2 . Kinetic 1527 | 267 1108 152 Thermal . | . . . Explosive 607 | . . 607 Electromagnetic . | . . . Impact . | . . . Slashing . | . . . Piercing . | . . . Highest Corruption . | . . . Average Corruption . | . . . Corruption Purged . | . . . Corruption Blocked . | . . . Overload Shots . | . . . Overflow Damage 46 | . . 46 Projectiles . | . . . Explosions 46 | . . 46 Melee . | . . . Knockbacks 5 | . 3 2 Impact . | . . . Kinetic 5 | . 3 2 Secondary . | . . . Self-Inflicted Damage 77 | . . 77 Shots 2 | . . 2 Rammed 1 | . 1 . Targets Rammed 1 | . 1 . Kicked . | . . . Crushed . | . . . Highest Temperature 40 | . 22 40 Average Temperature 9 | . 8 15 Received Heat Transfer 399 | . 339 60 Siege Activations . | . . . Robots Corrupted . | . . . Combat Hostiles . | . . . Parts Fried . | . . . Impact Corruptions . | . . . Robots Melted . | . . . Combat Hostiles . | . . . Parts Melted . | . . . Heat Transferred . | . . . Parts Sabotaged . | . . . Parts Stolen . | . . . Parts Stripped . | . . . Power Chain Reactions . | . . . Alert | -11 -10 -10 ------- Run | Yrd Mat Min Peak Influence 302 | 35 302 102 Initial 22 | . 22 1 Average 70 | 13 80 53 Maximum Alert Level 1 | . 1 . Low Security (%) 97 | 100 96 100 Level 1 2 | . 3 . Level 2 . | . . . Level 3 . | . . . Level 4 . | . . . Level 5 . | . . . High Security . | . . . Max Security . | . . . Squads Dispatched 4 | . 3 1 Investigation 3 | . 2 1 Extermination . | . . . Reinforcement 1 | . 1 . Assault . | . . . Garrison . | . . . Intercept . | . . . Searches Triggered . | . . . Construction Impeded . | . . . Haulers Reinforced . | . . . Active Scanning Responses . | . . . Cargo Convoy Interrupts . | . . . Stealth | -11 -10 -10 --------- Run | Yrd Mat Min Distress Signals 1 | . 1 . Communications Jammed . | . . . Distress Signals . | . . . Times Spotted 50 | . 29 21 Peak Tracking Total 19 | . 5 19 Tactical Retreats 4 | . 2 2 Traps | -11 -10 -10 ------- Run | Yrd Mat Min Traps Triggered 2 | . 2 . Indirectly . | . . . Trap Hack Attempts . | . . . Triggered . | . . . Disarmed . | . . . Reprogrammed . | . . . Reused . | . . . Traps Extracted . | . . . Installed . | . . . Triggered . | . . . Machines | -11 -10 -10 ---------- Run | Yrd Mat Min Machines Disabled 1 | . . 1 Max in Single Turn 1 | . . 1 Machines Repaired . | . . . Machines Dismantled . | . . . Machines Sabotaged . | . . . Overloaded Fab Kills . | . . . Hacking | -11 -10 -10 --------- Run | Yrd Mat Min Machines Accessed 8 | . 8 . Terminals 5 | . 5 . Fabricators . | . . . Repair Stations 1 | . 1 . Recycling Units 2 | . 2 . Scanalyzers . | . . . Garrison Access . | . . . Total Hacks 26 | . 26 . Successful 16 | . 16 . Failed 10 | . 10 . Catastrophic 2 | . 2 . Database Lockouts . | . . . Manual . | . . . Terminals 16 | . 16 . Fabricators . | . . . Repair Stations 4 | . 4 . Recycling Units 6 | . 6 . Scanalyzers . | . . . Garrison Access . | . . . Terminal Hacks 9 | . 9 . Record 1 | . 1 . Prototype ID Bank 2 | . 2 . Locate Traps 4 | . 4 . Security Status 1 | . 1 . Recall Investigation 1 | . 1 . Fabricator Hacks . | . . . Repair Station Hacks 4 | . 4 . Scan Component 2 | . 2 . Repair 2 | . 2 . Recycling Unit Hacks 3 | . 3 . Report Inventory 2 | . 2 . Retrieve Matter 1 | . 1 . Scanalyzer . | . . . Garrison Access Hacks . | . . . Unauthorized Hacks . | . . . Terminals . | . . . Fabricators . | . . . Repair Stations . | . . . Recycling Units . | . . . Scanalyzers . | . . . Garrison Access . | . . . Data Cores Recovered . | . . . Used . | . . . Hacking Detections 6 | . 6 . Full Trace Events . | . . . Feedback Events . | . . . Feedback Blocked . | . . . Robot Schematics Acquired . | . . . Robots Built . | . . . Authchips . | . . . Time . | . . . Total Robot Build Rating . | . . . Part Schematics Acquired . | . . . Parts Built . | . . . Authchips . | . . . Time . | . . . Total Part Build Rating . | . . . Parts Repaired 2 | . 2 . Time 52 | . 52 . Parts Recycled . | . . . Recycled Matter . | . . . Retrieved Matter . | . . . Retrieved Components . | . . . Parts Scanalyzed . | . . . Part Schematics Acquired . | . . . Parts Damaged . | . . . Bothacking | -11 -10 -10 ------------ Run | Yrd Mat Min Used RIF Installer . | . . . Robots Hacked . | . . . Non-combat . | . . . Combat . | . . . Robot Hacks Applied . | . . . Relay Couplers Released . | . . . Fabnet Peak Effective % . | . . . Robots Rewired . | . . . Allies Hacked . | . . . Hacks Repelled . | . . . Allies | -11 -10 -10 -------- Run | Yrd Mat Min Total Allies . | . . . Largest Group . | . . . Highest-Rated Group . | . . . Highest-Rated Ally . | . . . Total Orders . | . . . Ally Attacks . | . . . Total Damage . | . . . Kills . | . . . Allies Corrupted . | . . . Allies Melted . | . . . Intel | -11 -10 -10 ------- Run | Yrd Mat Min Robot Analysis Total . | . . . Derelict Logs Recovered . | . . . Drone Launches . | . . . Drone Recoveries . | . . . Exploration | -11 -10 -10 ------------- Run | Yrd Mat Min Turns Passed 2534 | 332 2077 125 Spaces Moved 1231 | 143 1035 53 Core 17 | 16 1 . Treads 1214 | 127 1034 53 Legs . | . . . Wheels . | . . . Hover . | . . . Flight . | . . . Fastest Speed 50 | 50 160 160 Average Speed 158 | 147 160 160 Slowest Speed 300 | 160 300 160 Overloaded Moves . | . . . Propulsion Burnouts . | . . . Robots Hopped . | . . . Cave-ins Triggered . | . . . Exploration Rate (%) 43 | 9 98 23 Regions Visited 2 Branch Regions 1 Pre-discovered Areas . | . . . Known Exits Taken . | . . . Unknown Exits Taken 2 | 1 1 . Scrap Searched . | . . . Spaces Dug 1 | . 1 . Terrain Destroyed 28 | . 1 27 Melee . | . . . Projectile 1 | . 1 . AOE 27 | . . 27 Terrain Rammed . | . . . Walls Destroyed . | . . . Machines Disabled . | . . . Actions | -11 -10 -10 --------- Run | Yrd Mat Min Total 1581 | 219 1287 75 Wait 161 | 40 121 . Move 1229 | 142 1034 53 Hop . | . . . Pick Up 28 | 8 19 1 Fast Attach 2 | 1 1 . Attach 14 | 3 8 3 Detach . | . . . Swap 14 | . 9 5 Drop 3 | . 2 1 Fire 129 | 25 92 12 Melee . | . . . Ram . | . . . Kick . | . . . Crush 1 | . 1 . Escape Stasis . | . . . Rewire . | . . . Trap . | . . . Miscellaneous . | . . . Route ------- -11/Scrapyard -10/Materials (discovered 5 exits: [*Mat x3] / [*Min x2]) -10/Mines History --------- Turn | Location | Event 82 | -11/Scrapyard | Discovered new exit (range 15) 333 | -11/Scrapyard | Entered Materials 334 | -10/Materials | Build established: Mutant 768 | -10/Materials | Discovered new exit (range 8) 1199 | -10/Materials | Core integrity fell below 50% 1279 | -10/Materials | Discovered new exit (range 11) 1322 | -10/Materials | Discovered new exit (range 7) 1397 | -10/Materials | Repaired Lgt. Treads 1423 | -10/Materials | Repaired Lgt. Treads 2173 | -10/Materials | Discovered new exit (range 7) 2331 | -10/Materials | Discovered new exit (range 13) 2410 | -10/Materials | Entered Mines 2507 | -10/Mines | Assembled infested the area 2522 | -10/Mines | Met a Derelict shopkeep closing up shop 2531 | -10/Mines | Core integrity fell below 20% 2535 | -10/Mines | Destroyed by as-47464 with Assembled Rifle Last Messages --------------- 02524_ Destroyed Asb. Hover Unit. 02524_ Machine disabled. 02525_ as-41590 destroyed. 02525_ Grenade Launcher destroyed. 02526_ 3V-G1V(g): "Well, take what you want I guess, I've had enough of this place!" 02526_ Lgt. Treads destroyed. 02526_ U-05 Engineer lays Concrete. 02528_ Machine disabled. 02529_ U-05 Engineer lays Concrete. 02530_ Lgt. Treads destroyed. 02532_ U-05 Engineer lays Concrete. 02532_ Seismic Detector destroyed. 02532_ Lgt. Assault Rifle destroyed. 02533_ U-05 Engineer lays Concrete. 02534_ as-74382 destroyed. 02534_ as-83143 knocked back. 02534_ Ion Engine destroyed. 02534_ as-32180 destroyed. 02535_ U-05 Engineer builds a Wall. Map ----- +----------------------------------------------------+ | | | | | | | | | | | | | | | | | ?????????????????????????????????????????????????? | | ?????????????????????????????????????????????????? | | ????????????????????????????????###??????????????? | | ??????????????????????????????? ????????????? | | ??????????????????????????????? ?????????????? | | ??????????????????????##?????? ??????????????? | | ?????????????????????? #??### ???????????????? | | ?????????????????????? ## # #???????????????? | | ??????????????????????? #????????????????? | | ??????????????????????? % ?????????????????? | | ???????#####???????????# a% ??????????????????? | | ?????### ##??????????? ???????????????????? | | ????## ##????????## ????????????????????? | | ????# ##???????# # a ####?????????????????? | | ????# ###?????# a "##????????????????? | | ???## ##????# aa =! #????????????????? | | ???# ####?#aaa a "????????????????? | | ???# #### @ "!g "????????????????? | | #### u *! #????????????????? | | r u #""##????????????????? | | % #########??#?????????????????? | | ### # #????????????????????????????? | | ???# ## ## #???????????????????????????? | | ???# ### ## #???????????????????????????? | | ???#??## ### #???????????????????????????? | | ??????## ##?#### ??????????????????????????? | | ???????#[#?????## ?????????????????????????? | | ???????# #??????## ????????????????????????? | | ??###### #?###???## ??????????????????????? | | ??# ## ##????# #####?????????????????????? | | ??# ###### ##????# ##?????????????????????????? | | ?# #???# #????? #??????????????????????????? | | # ##### #????? ??????????????????????????? | | #?????##??????????????????????????? | | ##?????????????????????????????????? | | ##### ##??????????????????????????????????? | | #???######???????????????????????????????????? | | ##????????????????????????????????????????????? | | ###??????????????????????????????????????????????? | | ?????????????????????????????????????????????????? | | ?????????????????????????????????????????????????? | | ?????????????????????????????????????????????????? | +----------------------------------------------------+ Best States ------------- Heat Dissipation 25 Energy Generation 10 Energy Capacity 250 Matter Stores 300 Matter Capacity 300 Sight Range 16 Robot Scan Range 14 Terrain Scan Density 10 Power Shielding 33 Evasion (%) 50 Recoil Reduction 2 Item Schematics ----------------- None Robot Schematics ------------------ None Fabricated ------------ Nothing Alien Tech Used ----------------- None Achievements -------------- Quick And Dirty Challenges ------------ None Game ------ Seed WaveTachyonBallwheel Manual? 0 Play Time 00:23:48 Cumulative 25.3 hours Start 2025.03.17 @ 10:11:03 End 2025.03.17 @ 10:33:46 Sessions 1 Manual Loads 0 Difficulty Rogue Special Mode None Game No. 35 Rogue 35 Adventurer 0 Explorer 0 Win Type - Total 0 Types 0/0/0/0/0/0/0/0/0 Lore% 11 Gallery% 21 Achievement% 22 Wizard Run 0 Options --------- Layout 2 ASCII 0 Keyboard 0 Movement Mouse Keybinds 0 Fullscreen 1 Font 16/X11CapsBold Map View 25x24 Zoom Use 98% Tactical HUD 1 Map Filters NONE Filters NONE Steam SD RUN: 807bae34-9feb-46e1-bc30-dd4a4e3df0f5